bitfinex-derivatives/quotes_BTCF0:USTF0_20250710
["timestamp","ask_amount","ask_price","bid_price","bid_amount"]
[1752182378294,2.14359885,117120.0,117060.0,0.08542992]
[1752182378493,0.4408,117110.0,117000.0,0.00170933]
[1752182378687,0.5,117110.0,117060.0,0.17986347]
[1752182378890,7.22e-05,117100.0,117060.0,0.09443355]
[1752182379091,9.454e-05,117100.0,117040.0,9.004e-05]
[1752182379289,1.41654611,117100.0,117060.0,0.17986347]
[1752182379487,0.064,117090.0,116940.0,0.04922]
[1752182379697,0.04732341,116930.0,116840.0,0.0196948]
[1752182379891,0.04732341,116930.0,116840.0,0.00171167]
[1752182380092,0.08153342,116930.0,116920.0,0.09572544]
[1752182380396,1.71968138,116930.0,116920.0,0.121148]
[1752182380592,0.04885,116920.0,116850.0,0.32635282]
[1752182380791,0.04885,117030.0,116920.0,0.17474029]
[1752182380996,0.04885,117020.0,116910.0,0.08928847]
[1752182381290,0.04885,117020.0,116840.0,0.00171167]
[1752182381291,0.04885,117000.0,116840.0,0.00171167]
[1752182381500,0.32635282,116990.0,116840.0,0.00171167]
[1752182381694,0.04885,116980.0,116840.0,0.00171167]
[1752182381891,0.40460202,116860.0,116850.0,0.32635282]
[1752182382089,0.04885,116950.0,116850.0,0.32635282]
[1752182382296,0.002,116920.0,116860.0,0.1]
[1752182382596,0.00134482,116920.0,116870.0,0.32635282]
[1752182382793,0.00134482,116920.0,116860.0,0.09711562]
[1752182382794,0.04885,116900.0,116890.0,0.5]
[1752182382999,0.04875,116900.0,116890.0,0.5]
[1752182383195,0.00134482,116920.0,116890.0,0.77079]
[1752182383394,0.40460202,116930.0,116910.0,0.32635282]
[1752182383594,0.0017,116960.0,116890.0,0.58554685]
[1752182383595,0.40460202,116950.0,116890.0,0.58554685]
[1752182383795,0.40460202,116950.0,116910.0,0.09231964]
[1752182384003,0.0007,116960.0,116900.0,0.32635282]
[1752182384199,0.40460202,117000.0,116950.0,0.32635282]
[1752182384397,0.9815927,117100.0,117090.0,0.17064787]
[1752182384701,1.1852,117150.0,117040.0,0.37557282]
[1752182384898,1e-07,117160.0,117150.0,0.1686185]
[1752182385099,1e-07,117160.0,117080.0,0.3128607]
[1752182385401,0.32635282,117090.0,117080.0,0.1707257]
[1752182385602,0.32635282,117090.0,116960.0,0.0427249]
[1752182385796,0.5,117080.0,116990.0,0.0427138]
[1752182386002,0.5,117080.0,117010.0,0.0427064]
[1752182386199,0.67938851,117080.0,116990.0,0.03487464]
[1752182386403,0.32635282,117040.0,117030.0,0.1707904]
[1752182386601,0.32635282,117040.0,116980.0,0.0427154]
[1752182386801,0.32635282,117000.0,116950.0,0.0427253]
[1752182387002,0.75376,116990.0,116940.0,0.0427325]
[1752182387199,1.18488,116980.0,116970.0,0.1708862]
[1752182387404,1.0456416,116980.0,116970.0,0.1708862]
[1752182387609,1.3472272,116980.0,116970.0,0.1708862]
[1752182387804,1.22691165,116980.0,116970.0,0.1708862]
[1752182388005,1.05511667,116980.0,116950.0,0.0427281]
[1752182388304,1.05511667,116980.0,116970.0,0.1573862]
[1752182388305,1.46524851,116980.0,116970.0,0.1573862]
[1752182388499,1.46183161,116980.0,116950.0,0.02821512]
[1752182388804,0.41,116970.0,116960.0,0.21087715]
[1752182389002,1.04999044,116980.0,116970.0,0.07092282]
[1752182389306,1.37634326,116980.0,116970.0,0.1708862]
[1752182389511,1.21925697,116980.0,116970.0,0.1708862]
[1752182389712,0.5,117050.0,117030.0,0.00170889]
[1752182389911,1.18488,117070.0,117050.0,0.1707694]
[1752182390099,1.15721499,117060.0,117030.0,0.00170889]
[1752182390305,0.08548835,117050.0,117040.0,0.1707839]
[1752182390505,0.49722482,117060.0,117030.0,0.17250429]
[1752182390704,0.32635282,117040.0,116910.0,0.00171064]
[1752182390907,0.32635282,116970.0,116950.0,0.2136275]
[1752182391206,1.05211282,116960.0,116890.0,0.0854984]
[1752182391402,0.32635282,116910.0,116880.0,0.04446188]
[1752182391604,0.32635282,116910.0,116880.0,0.00161108]
[1752182391804,0.32635282,116890.0,116800.0,0.00153691]
[1752182392001,0.32635282,116830.0,116820.0,0.1710944]
[1752182392199,0.32635282,116830.0,116800.0,0.17266231]
[1752182392402,0.49756082,116830.0,116800.0,0.00153691]
[1752182392604,0.32635282,116830.0,116810.0,0.0855575]
[1752182392908,0.32635282,116830.0,116800.0,0.04431851]
[1752182392909,0.32635282,116820.0,116800.0,0.04431851]
[1752182393208,0.32635282,116820.0,116800.0,0.0427809]
[1752182393407,0.6619546,116820.0,116790.0,0.0007124]
[1752182393613,0.32635282,116790.0,116780.0,0.1711566]
[1752182393810,0.32635282,116790.0,116780.0,0.07119322]
[1752182394007,0.74760883,116790.0,116780.0,0.07119322]
[1752182394307,0.7477085,116790.0,116780.0,0.1711566]
[1752182394506,0.66206332,116790.0,116760.0,0.0427963]
[1752182394706,0.0117,116760.0,116750.0,0.17291949]
[1752182394908,0.5,116830.0,116790.0,0.0427854]
[1752182395109,1.5102291,116800.0,116780.0,0.0427887]
[1752182395309,0.44570925,116790.0,116760.0,0.0427976]
[1752182395507,0.32635282,116760.0,116750.0,0.1712053]
[1752182395706,0.32635282,116760.0,116730.0,0.00020009]
[1752182395707,2.64090685,116760.0,116730.0,0.00020009]
[1752182395908,0.32635282,116740.0,116720.0,0.00171343]
[1752182396206,0.32635282,116740.0,116670.0,0.00171416]
[1752182396207,0.5,116730.0,116670.0,0.00171416]
[1752182396407,0.32635282,116690.0,116670.0,0.00171416]
[1752182396607,3.50052,116680.0,116670.0,0.00171416]
[1752182397001,3.45652915,116680.0,116670.0,0.00171416]
[1752182397206,3.62794515,116680.0,116670.0,0.00171416]
[1752182397407,3.70652915,116680.0,116640.0,0.0017146]
[1752182397601,2.64151282,116670.0,116640.0,0.0017146]
[1752182398008,0.0001,116660.0,116640.0,0.0017146]
[1752182398607,8.252e-05,116650.0,116640.0,0.0017146]
[1752182398806,2.31516,116670.0,116640.0,0.0017146]
[1752182399412,0.32635282,116650.0,116630.0,0.00171475]
[1752182399910,0.00123831,116530.0,116470.0,0.32865459]
[1752182400213,0.00123831,116530.0,116520.0,0.00171637]
[1752182400406,0.00010988,116530.0,116520.0,0.83745025]
[1752182400604,1.79968,116570.0,116520.0,1.27065117]
[1752182400809,0.04652,116600.0,116520.0,2.42904654]
[1752182401007,0.04652,116600.0,116520.0,2.34331266]
[1752182401207,1.18588,116650.0,116550.0,0.32635282]
[1752182401407,0.002,116810.0,116720.0,0.7682148]
[1752182401611,0.002,116810.0,116750.0,0.1]
[1752182401807,0.002,116810.0,116790.0,0.7682148]
[1752182402110,0.04652,116790.0,116750.0,0.7682148]
[1752182402415,0.06718468,116870.0,116770.0,0.32635282]
[1752182402603,0.002,116880.0,116830.0,0.32635282]
[1752182403008,2.62676,116910.0,116830.0,1.74138389]
[1752182403009,0.00010758,116870.0,116830.0,1.74138389]
[1752182403209,0.04652,116890.0,116860.0,0.7682148]
[1752182403509,0.31,116910.0,116880.0,0.7682148]
[1752182403716,2.31676,116900.0,116870.0,0.7682148]
[1752182404010,9.182e-05,116890.0,116870.0,0.7682148]
[1752182404209,2.64311282,116900.0,116780.0,0.32635282]
[1752182404407,2.30572151,116890.0,116860.0,0.7682148]
[1752182404609,8.2e-05,116880.0,116830.0,0.0315]
[1752182404807,0.04652,116860.0,116750.0,0.04753]
[1752182405111,0.04652,116860.0,116740.0,9.896e-05]
[1752182405112,0.32635282,116800.0,116740.0,9.896e-05]
[1752182405304,0.01591,116780.0,116690.0,0.0304]
[1752182405503,2.31676,116790.0,116690.0,0.0304]
[1752182405504,0.01791,116750.0,116690.0,1.72748777]
[1752182405714,1.20008716,116750.0,116710.0,0.7339688]
[1752182405911,1.1983749,116750.0,116700.0,0.7339688]
[1752182406106,1.1983749,116750.0,116690.0,1.72548777]
[1752182406107,1.13647238,116750.0,116690.0,0.0264]
[1752182406409,9.577e-05,116740.0,116700.0,0.034268]
[1752182406611,9.687e-05,116740.0,116690.0,0.0264]
[1752182406811,2.31572,116730.0,116690.0,0.0264]
[1752182407008,2.31572,116730.0,116680.0,0.00171402]
[1752182407204,0.08566778,116740.0,116680.0,1.70080179]
[1752182407409,1.13647238,116750.0,116690.0,0.04753]
[1752182407707,1.13647238,116750.0,116680.0,0.00043437]
[1752182408011,0.32635282,116710.0,116680.0,0.00043437]
[1752182408212,0.0316,116700.0,116640.0,0.0017146]
[1752182408414,2.95207282,116690.0,116640.0,0.0017146]
[1752182408711,3.22932463,116690.0,116590.0,0.00171534]
[1752182409012,0.32464042,116610.0,116560.0,0.00171578]
[1752182409218,0.58340818,116600.0,116560.0,0.00171578]
[1752182409417,0.909761,116600.0,116560.0,0.00171578]
[1752182409613,0.32635282,116570.0,116560.0,0.00171578]
[1752182409915,0.82635282,116590.0,116560.0,0.00171578]
[1752182410112,0.24193431,116590.0,116560.0,0.00171578]
[1752182410409,0.08578904,116590.0,116560.0,0.00171578]
[1752182410710,1.158,116580.0,116560.0,0.00171578]
[1752182410910,1.158,116580.0,116520.0,0.03211637]
[1752182410911,0.32635282,116570.0,116520.0,0.00171637]
[1752182411111,0.32635282,116540.0,116470.0,0.03360177]
[1752182411312,7.281e-05,116560.0,116470.0,0.03360177]
[1752182411313,0.5,116560.0,116480.0,2.41857353]
[1752182411514,1.59857818,116570.0,116500.0,0.7177688]
[1752182411718,0.65992,116550.0,116510.0,0.7177688]
[1752182412018,0.98627282,116550.0,116480.0,0.00171696]
[1752182412219,0.32635282,116510.0,116480.0,0.00171696]
[1752182412511,0.50007804,116500.0,116480.0,0.00171696]
[1752182412712,0.08581481,116550.0,116480.0,0.00171696]
[1752182412713,0.5,116580.0,116480.0,1.70080473]
[1752182412917,0.002,116560.0,116510.0,0.7177688]
[1752182413119,0.002,116560.0,116540.0,0.7177688]
[1752182413312,0.1736,116560.0,116500.0,0.7177688]
[1752182413513,8.695e-05,116550.0,116490.0,1.80931777]
[1752182413719,1.15872695,116550.0,116490.0,1.80931777]
[1752182414023,0.002,116650.0,116550.0,0.04753]
[1752182414317,0.002,116650.0,116610.0,0.32635282]
[1752182414511,1.11424,116680.0,116630.0,0.7652988]
[1752182414716,1.11488,116680.0,116640.0,0.04753]
[1752182414916,1.61268082,116680.0,116650.0,0.7171988]
[1752182415113,2.81812,116670.0,116590.0,0.5]
[1752182415314,2.27456915,116670.0,116600.0,0.07833]
[1752182415521,1.18688,116660.0,116610.0,0.7647288]
[1752182415716,0.31,116650.0,116610.0,0.7653688]
[1752182416016,0.31064,116650.0,116610.0,0.00064]
[1752182416220,0.48212001,116650.0,116600.0,0.0308]
[1752182416522,0.5,116640.0,116590.0,0.00171534]
[1752182416724,1.15908,116630.0,116590.0,0.00171534]
[1752182416925,1.48587282,116630.0,116590.0,0.00171534]
[1752182417517,0.32679282,116630.0,116590.0,0.00171534]
[1752182417720,0.0342,116760.0,116660.0,0.04753]
[1752182418019,0.35719282,116740.0,116670.0,0.0639]
[1752182418213,0.28236197,116680.0,116670.0,0.0322]
[1752182418418,0.32645753,116680.0,116610.0,0.07923]
[1752182418617,1.18688,116710.0,116610.0,0.0639]
[1752182418618,0.32635282,116620.0,116610.0,0.0639]
[1752182418822,1.48543282,116650.0,116620.0,0.7171988]
[1752182419119,1.48543282,116650.0,116620.0,0.0008]
[1752182419421,6.651e-05,116640.0,116610.0,0.0322]
[1752182419623,0.32635282,116620.0,116600.0,0.00171519]
[1752182419829,6.167e-05,116610.0,116600.0,0.00171519]
[1752182420118,0.32635282,116630.0,116600.0,0.00171519]
[1752182420327,0.49785682,116630.0,116600.0,0.00171519]
[1752182420512,0.25,116630.0,116600.0,0.00171519]
[1752182420714,0.32635282,116610.0,116590.0,0.00171534]
[1752182420913,0.32635282,116610.0,116560.0,0.00171578]
[1752182420914,1.21772,116600.0,116560.0,0.00171578]
[1752182421120,1.21772,116600.0,116530.0,0.0309]
[1752182421121,1.15912,116590.0,116530.0,0.0309]
[1752182421314,0.28236197,116570.0,116530.0,0.0309]
[1752182421514,0.32635282,116570.0,116530.0,0.0309]
[1752182421716,0.42158401,116570.0,116530.0,0.0309]
[1752182421919,0.32635282,116560.0,116530.0,0.0309]
[1752182422122,7.521e-05,116550.0,116500.0,0.1]
[1752182422322,9.362e-05,116540.0,116490.0,0.61953296]
[1752182422522,0.24943902,116560.0,116490.0,0.61953296]
[1752182422523,0.08579272,116560.0,116540.0,0.04659]
[1752182422723,1.15912,116620.0,116550.0,0.0613]
[1752182422928,0.034,116610.0,116550.0,0.7796177]
[1752182423125,0.002,116570.0,116550.0,0.0631789]
[1752182423326,0.002,116570.0,116550.0,0.65155186]
[1752182423518,0.0172,116650.0,116550.0,0.65155186]
[1752182423519,0.032,116710.0,116610.0,0.04659]
[1752182423721,0.032,116710.0,116640.0,0.04487363]
[1752182423916,0.002,116640.0,116620.0,0.0304]
[1752182424129,0.002,116600.0,116550.0,0.0011189]
[1752182424321,1.14699915,116620.0,116570.0,0.0284]
[1752182424623,0.15780928,116640.0,116570.0,0.0284]
[1752182424822,0.002,116680.0,116610.0,0.32635282]
[1752182425023,1.60103651,116720.0,116660.0,0.32635282]
[1752182425024,0.312,116720.0,116660.0,0.32635282]
[1752182425418,0.312,116720.0,116660.0,0.58113296]
[1752182425619,0.312,116720.0,116660.0,0.58193296]
[1752182426225,0.00171,116690.0,116660.0,0.0008]
[1752182426530,0.00171,116690.0,116600.0,0.00171519]
[1752182426531,1.16115,116680.0,116600.0,0.00171519]
[1752182426733,0.32635282,116630.0,116560.0,0.00171578]
[1752182426919,0.32635282,116600.0,116560.0,0.00171578]
[1752182427124,0.32635282,116570.0,116520.0,0.00171637]
[1752182427322,0.32635282,116530.0,116430.0,0.0017177]
[1752182427525,1.50774197,116520.0,116430.0,0.0017177]
[1752182427835,1.50774197,116520.0,116480.0,0.58113296]
[1752182427836,0.02230915,116520.0,116480.0,0.58113296]
[1752182428036,0.02230915,116520.0,116480.0,1.34572176]
[1752182428330,0.02205152,116520.0,116490.0,0.04659]
[1752182428527,0.27956042,116520.0,116460.0,0.04659]
[1752182428831,0.31,116510.0,116460.0,0.04659]
[1752182429031,0.31,116510.0,116450.0,0.0655]
[1752182429328,0.31,116510.0,116450.0,1.36383176]
[1752182429525,0.31,116510.0,116450.0,0.64739296]
[1752182429726,0.31,116510.0,116450.0,0.54739296]
[1752182429920,0.31,116510.0,116450.0,1.26459176]
[1752182430225,0.31,116510.0,116450.0,0.87374578]
[1752182430419,0.02405152,116520.0,116450.0,0.87374578]
[1752182430619,0.02405152,116520.0,116500.0,0.1]
[1752182430829,0.10990316,116520.0,116450.0,0.54739296]
[1752182431031,0.08785164,116520.0,116450.0,0.54739296]
[1752182431230,0.58785164,116520.0,116440.0,0.00171755]
[1752182431430,0.26,116510.0,116440.0,0.64911051]
[1752182431733,0.32635282,116490.0,116440.0,0.00171755]
[1752182431929,1.15948,116480.0,116430.0,1.5e-07]
[1752182432143,0.32635282,116460.0,116430.0,1.5e-07]
[1752182432432,0.32635282,116430.0,116400.0,0.00053856]
[1752182432728,1.15948,116420.0,116340.0,0.04659]
[1752182432933,1.65948,116420.0,116320.0,0.06361932]
[1752182433230,0.32635282,116400.0,116320.0,0.06361932]
[1752182433431,0.32635282,116370.0,116320.0,0.00171932]
[1752182433628,1.11584915,116360.0,116350.0,0.1]
[1752182433927,1.11628915,116360.0,116350.0,0.1]
[1752182434132,1.28817715,116360.0,116350.0,0.1]
[1752182434328,1.28817715,116360.0,116350.0,0.64739296]
[1752182434329,0.00044,116360.0,116350.0,0.64739296]
[1752182434537,1.18764,116390.0,116350.0,1.36515176]
[1752182434731,1.76447283,116390.0,116350.0,0.00056]
[1752182435037,1.76447283,116390.0,116280.0,0.00171991]
[1752182435038,0.32635282,116360.0,116280.0,0.00171991]
[1752182435335,0.32635282,116360.0,116240.0,0.0017205]
[1752182435336,0.5,116350.0,116240.0,0.0017205]
[1752182435522,0.50044,116350.0,116270.0,0.55095379]
[1752182435724,1.16088,116350.0,116280.0,0.0637]
[1752182435928,1.16088,116350.0,116290.0,0.7171988]
[1752182436135,1.2468128,116350.0,116290.0,0.7177588]
[1752182436327,0.82635282,116340.0,116290.0,0.00056]
[1752182436527,0.78280197,116340.0,116270.0,0.00356083]
[1752182436836,1.16044,116330.0,116270.0,0.00356083]
[1752182437028,0.26,116320.0,116270.0,0.00356083]
[1752182437224,1.18824,116310.0,116270.0,0.00356083]
[1752182437631,1.16044,116300.0,116270.0,0.00356083]
[1752182438129,1.24642452,116300.0,116270.0,0.00356083]
[1752182438329,0.32609463,116290.0,116240.0,0.0017205]
[1752182438637,0.82635282,116280.0,116230.0,0.00172065]
[1752182438833,0.32635282,116250.0,116220.0,0.00100048]
[1752182439130,0.32635282,116250.0,116190.0,0.00389079]
[1752182439338,1.16104,116240.0,116190.0,0.00389079]
[1752182439537,1.18888,116230.0,116190.0,0.00389079]
[1752182439836,1.14488915,116230.0,116190.0,0.00389079]
[1752182440137,1.31698515,116230.0,116190.0,0.00389079]
[1752182440528,1.14488915,116230.0,116200.0,0.54911406]
[1752182440731,1.14488915,116230.0,116200.0,0.0017211]
[1752182440732,2.47802515,116230.0,116200.0,0.0017211]
[1752182440930,1.40303256,116230.0,116200.0,0.0017211]
[1752182441132,1.16104,116220.0,116200.0,0.0017211]
[1752182441526,0.0328,116210.0,116200.0,0.0017211]
[1752182441832,0.0328,116210.0,116190.0,0.00389079]
[1752182442038,0.32635282,116200.0,116160.0,0.00172169]
[1752182442236,0.32635282,116200.0,116080.0,0.33063312]
[1752182442237,0.32635282,116170.0,116090.0,0.04659]
[1752182442436,2.61624,116160.0,116120.0,0.59570524]
[1752182442635,2.27944915,116150.0,116120.0,0.54911524]
[1752182442842,1.1896,116140.0,116120.0,1.26631404]
[1752182443035,1.19020001,116140.0,116120.0,1.26691404]
[1752182443337,1.19020001,116140.0,116120.0,0.54971524]
[1752182443526,1.19020001,116140.0,116130.0,0.7637888]
[1752182443728,2.32344,116190.0,116120.0,0.48904628]
[1752182443934,2.32344,116190.0,116130.0,0.04659]
[1752182444334,0.32635282,116150.0,116090.0,0.04659]
[1752182444536,0.0469,116170.0,116090.0,0.04659]
[1752182444537,0.37325282,116170.0,116090.0,0.04659]
[1752182444733,0.2918,116180.0,116090.0,0.04659]
[1752182445337,0.0469,116170.0,116080.0,0.0042803]
[1752182445540,0.0469,116080.0,116030.0,0.00172362]
[1752182445737,0.37325282,116040.0,115970.0,0.04003827]
[1752182446038,0.0469,116010.0,115880.0,0.00183472]
[1752182446338,0.0318,116000.0,115880.0,0.00183472]
[1752182446639,1.1624,115990.0,115880.0,0.00183472]
[1752182446838,0.0469,116050.0,115930.0,0.32635282]
[1752182447038,0.32635282,116030.0,115920.0,0.08792843]
[1752182447234,0.0469,116000.0,115920.0,0.00172525]
[1752182447436,0.35725282,115990.0,115920.0,0.00172525]
[1752182447643,0.002,116000.0,115920.0,0.00172525]
[1752182447839,0.002,116000.0,115930.0,0.04659]
[1752182448341,0.32787773,116000.0,115940.0,0.04659]
[1752182448540,0.0615,115990.0,115940.0,0.04659]
[1752182448735,0.0469,116010.0,115930.0,0.04659]
[1752182448936,1.2103,116010.0,115930.0,0.04659]
[1752182449243,1.1634,116020.0,115930.0,0.03148358]
[1752182449445,0.0469,115990.0,115930.0,0.03148358]
[1752182449741,1.30438,115980.0,115910.0,0.05957169]
[1752182449940,0.3069,115970.0,115950.0,0.00172481]
[1752182450144,0.3069,115970.0,115910.0,0.05400531]
[1752182450940,0.26,115970.0,115910.0,0.05400531]
[1752182451135,0.26,115970.0,115910.0,0.14025309]
[1752182451335,1.19128,115980.0,115920.0,0.04659]
[1752182451743,1.14928915,115980.0,115910.0,0.05400531]
[1752182452051,0.26,115970.0,115920.0,0.04737]
[1752182452538,0.26,115970.0,115910.0,0.04737]
[1752182452738,0.30899,115970.0,115920.0,0.04737]
[1752182453039,0.30899,115970.0,115900.0,0.32936954]
[1752182453040,1.14928915,115980.0,115930.0,0.0315]
[1752182453230,0.002,115960.0,115930.0,0.0315]
[1752182453434,0.002,115960.0,115940.0,0.04737]
[1752182454739,0.002,115960.0,115940.0,0.04694955]
[1752182454933,0.21800915,115970.0,115930.0,0.0315]
[1752182455131,1.14928915,115980.0,115940.0,0.0332]
[1752182455638,1.24843,116000.0,115940.0,0.0332]
[1752182455836,0.22,115990.0,115940.0,0.0332]
[1752182456039,0.22,115990.0,115930.0,0.0315]
[1752182456243,0.04899,115970.0,115930.0,0.0315]
[1752182456742,0.22,115990.0,115930.0,0.07887]
[1752182456943,0.22,115990.0,115940.0,0.0309]
[1752182457141,0.22,115990.0,115950.0,0.04737]
[1752182457847,0.04899,115980.0,115940.0,0.0309]
[1752182458049,0.04899,115990.0,115930.0,0.0315]
[1752182458543,0.0303,115980.0,115930.0,0.0315]
[1752182458743,0.08269,115970.0,115920.0,0.04909525]
[1752182458934,1.37268,115960.0,115920.0,0.00172525]
[1752182459136,0.04899,115940.0,115920.0,0.00172525]
[1752182459340,0.0337,115930.0,115920.0,0.00172525]
[1752182459541,0.08269,115930.0,115920.0,0.00172525]
[1752182460042,0.18,115960.0,115930.0,0.04737]
[1752182460234,0.00044,115960.0,115950.0,0.04737]
[1752182460434,0.0337,115990.0,115940.0,0.04737]
[1752182460646,0.02024325,116000.0,115960.0,0.32635282]
[1752182460842,0.182,116010.0,115980.0,0.04737]
[1752182461042,0.01793236,116020.0,115990.0,0.32635282]
[1752182461343,0.002,116080.0,116010.0,0.04737]
[1752182461545,0.00248001,116080.0,116040.0,0.32635282]
[1752182461843,0.00044,116060.0,116040.0,0.5]
[1752182462145,0.04943,116050.0,116040.0,0.50076]
[1752182462540,0.44985975,116050.0,116040.0,0.01572071]
[1752182462736,0.40134976,116050.0,116000.0,0.00172406]
[1752182462936,0.92507704,116050.0,115960.0,0.04909466]
[1752182463136,0.23835471,116050.0,115990.0,0.00172421]
[1752182463343,0.01811928,116050.0,116020.0,0.04737]
[1752182463648,0.01811928,116050.0,116040.0,0.21972]
[1752182463848,0.002,116080.0,116040.0,0.17235]
[1752182464144,0.0001,116100.0,116070.0,0.17235]
[1752182464342,0.0001,116100.0,116060.0,0.21972]
[1752182464543,0.0001,116100.0,116090.0,0.17235]
[1752182465051,0.142,116090.0,116070.0,0.04737]
[1752182465238,0.142,116090.0,116080.0,0.17235]
[1752182465438,0.142,116090.0,116050.0,0.04737]
[1752182465744,0.24636652,116090.0,116040.0,0.04909347]
[1752182465946,0.16023017,116090.0,116050.0,0.07967]
[1752182466244,0.23235017,116090.0,116040.0,0.04909347]
[1752182466451,0.01812,116070.0,116040.0,0.00172347]
[1752182466742,0.07212,116060.0,116040.0,0.00172347]
[1752182466936,0.07212,116060.0,116030.0,0.00172362]
[1752182466937,1.16484,116050.0,116030.0,0.00172362]
[1752182467135,1.16484,116050.0,115990.0,0.00172421]
[1752182467341,1.16484,116050.0,116000.0,0.17235]
[1752182467545,1.16484,116040.0,115990.0,0.00172421]
[1752182467746,1.16484,116040.0,116000.0,0.17235]
[1752182468137,1.16532001,116040.0,116000.0,0.17235]
[1752182468541,1.16532001,116040.0,115990.0,0.00172421]
[1752182468542,1.81898275,116040.0,115990.0,0.00172421]
[1752182468738,1.91481188,116040.0,115990.0,0.00172421]
[1752182468939,1.32024593,116040.0,115990.0,0.00172421]
[1752182469450,2.06899075,116040.0,115960.0,0.00172466]
[1752182469753,1.16492,116030.0,115960.0,0.17407466]
[1752182470048,1.14884915,116020.0,115960.0,0.03362466]
[1752182470244,1.14928915,116020.0,115960.0,0.03362466]
[1752182470439,0.14,116010.0,115960.0,0.20597466]
[1752182470851,1.16492,116000.0,115960.0,0.17407466]
[1752182471049,1.16536,116000.0,115960.0,0.17407466]
[1752182471346,0.00044,116000.0,115960.0,0.17407466]
[1752182471542,0.15804154,116010.0,115960.0,0.17407466]
[1752182471742,1.25130176,116000.0,115960.0,0.00172466]
[1752182471946,1.16552,116000.0,115960.0,0.17407466]
[1752182472144,0.08666176,116000.0,115960.0,0.00172466]
[1752182472349,1.16508,116000.0,115960.0,0.17407466]
[1752182472549,0.00048001,116000.0,115970.0,0.17235]
[1752182472752,1.19828,115990.0,115970.0,0.17235]
[1752182472949,0.03364,115990.0,115960.0,0.00172466]
[1752182473149,1.16508,115980.0,115960.0,0.00172466]
[1752182473344,0.00044,115980.0,115960.0,0.00172466]
[1752182473550,1.16508,115980.0,115960.0,0.00172466]
[1752182473844,0.00044,115980.0,115970.0,0.17235]
[1752182474045,1.18289733,115990.0,115970.0,0.17235]
[1752182474250,0.08622547,115980.0,115950.0,0.17235]
[1752182474452,0.01781733,115990.0,115920.0,0.03402525]
[1752182474651,1.16508,115980.0,115950.0,0.17235]
[1752182474849,1.16552,115980.0,115950.0,0.17235]
[1752182475352,0.00044,115980.0,115950.0,0.17235]
[1752182475547,1.16524,115970.0,115950.0,0.17235]
[1752182475742,1.16572001,115970.0,115950.0,0.17235]
[1752182475950,0.00048001,115970.0,115950.0,0.17235]
[1752182476150,1.12124915,115960.0,115950.0,0.17235]
[1752182476348,0.00048001,115960.0,115950.0,0.17235]
[1752182476648,1.16524,115970.0,115950.0,0.17235]
[1752182476850,1.17766001,115970.0,115930.0,0.04737]
[1752182477049,0.01781733,115990.0,115960.0,0.04737]
[1752182477255,0.14959069,116010.0,116000.0,0.19938266]
[1752182477444,0.14959069,116010.0,116000.0,0.15201266]
[1752182477646,1.60156276,116010.0,115950.0,0.00172481]
[1752182477947,1.21056,116000.0,115940.0,0.04737]
[1752182478154,1.21056,116000.0,115970.0,0.15201266]
[1752182478750,0.14959069,116010.0,115990.0,0.15201266]
[1752182478946,0.02004154,116010.0,116000.0,0.19938266]
[1752182479149,0.02325069,116040.0,115920.0,0.04737]
[1752182479355,0.02325069,116040.0,115970.0,0.04737]
[1752182479550,0.13,116030.0,115970.0,0.19938266]
[1752182479745,0.13,116030.0,115970.0,0.04737]
[1752182480051,0.002,116000.0,115990.0,0.00172421]
[1752182480257,2.33276,116000.0,115990.0,0.14973687]
[1752182481050,2.33276,116000.0,115970.0,0.04737]
[1752182481255,2.33276,116000.0,115980.0,0.14973687]
[1752182481750,1.16732,116000.0,115990.0,0.14973687]
[1752182482155,1.12332915,116010.0,116000.0,0.14973687]
[1752182482551,1.78589258,116010.0,115960.0,0.00172466]
[1752182482757,0.0702,116000.0,115920.0,0.08168991]
[1752182482949,1.19151698,115990.0,115920.0,0.08168991]
[1752182483152,1.16532,115980.0,115960.0,0.14973687]
[1752182483352,1.16532,115980.0,115950.0,0.14973687]
[1752182483552,0.0345,115970.0,115950.0,0.14973687]
[1752182483848,0.36085282,115970.0,115920.0,0.00144991]
[1752182484356,1.16528,115960.0,115920.0,0.00144991]
[1752182484658,1.16528,115960.0,115940.0,0.14973687]
[1752182484852,1.16528,115960.0,115920.0,0.04688991]
[1752182485053,1.16528,115960.0,115920.0,0.00144991]
[1752182485353,0.0345,115970.0,115910.0,0.14973687]
[1752182485354,1.16528,115950.0,115910.0,0.14973687]
[1752182485657,0.03277757,115940.0,115910.0,0.14773687]
[1752182486158,0.53165839,115940.0,115900.0,0.00246663]
[1752182486356,0.03277757,115940.0,115900.0,0.1502035]
[1752182487851,0.03105573,115940.0,115900.0,0.1502035]
[1752182488160,0.03105573,115940.0,115900.0,0.1482035]
[1752182488353,1.1558005,115950.0,115900.0,0.1482035]
[1752182488557,0.32635282,115940.0,115900.0,0.03497262]
[1752182489448,0.32635282,115930.0,115880.0,0.17692235]
[1752182489747,2.3594,115920.0,115870.0,0.001726]
[1752182489950,1.52003282,115920.0,115870.0,0.001726]
[1752182490253,1.16572,115910.0,115880.0,0.14773687]
[1752182490454,1.49234282,115910.0,115870.0,0.19290287]
[1752182490651,0.00027,115900.0,115840.0,0.00172644]
[1752182490852,1.16599,115890.0,115830.0,0.00145303]
[1752182491057,1.16572,115890.0,115830.0,0.00145303]
[1752182491254,0.32635282,115900.0,115840.0,0.14773687]
[1752182491459,1.16572,115890.0,115840.0,0.14773687]
[1752182492160,0.08631106,115890.0,115840.0,0.04544]
[1752182492356,1.16572,115910.0,115880.0,0.14773687]
[1752182492556,1.16572,115910.0,115840.0,0.04544]
[1752182492751,1.16572,115910.0,115880.0,0.14773687]
[1752182492961,1.26249491,115920.0,115880.0,0.04544]
[1752182492962,0.002,115890.0,115880.0,0.04544]
[1752182493157,0.002,115890.0,115880.0,0.04344]
[1752182493357,0.00027994,115890.0,115880.0,0.19117687]
[1752182493661,1.16460047,115910.0,115840.0,0.0347]
[1752182493853,1.66460047,115910.0,115860.0,0.14773687]
[1752182494055,1.25089291,115910.0,115860.0,0.14773687]
[1752182494550,1.25089291,115910.0,115840.0,0.0347]
[1752182494551,0.004,115900.0,115840.0,0.0347]
[1752182494755,1.30856598,115910.0,115840.0,0.0347]
[1752182494958,0.004,115900.0,115840.0,0.0347]
[1752182495254,0.08629244,115910.0,115860.0,0.11767327]
[1752182495461,0.004,115890.0,115840.0,0.03642644]